{"text_format":"1","workbook":"xlsx","n_sheets":4,"sheets":["Hintergrund","Startseite","Site 1","Instructions"],"not_rendered":{"charts":0,"images":2,"macros":1,"external_links":0,"defined_names":2,"comments":0,"pivot_tables":0},"unopened":[],"bounds":{"document_bytes":16777216,"sheet_cells":100000,"rows_first":2000,"rows_last":500,"rows_between":2000,"halvings":0,"cell_chars":16384,"cell_head_chars":4096},"cells_cut":0,"cells_raw":0,"read":"whole","date_system":"1900"}

{"sheet":"Hintergrund","index":0,"n_rows":26,"n_cols":4,"rows_kept":26,"cut":false,"hidden":true,"merged":[[0,0,2,0],[0,1,1,3],[25,1,25,3]]}
[null,"Manntage (MT) vor Ort"]
[]
[null,"Zertifizierungsaudit","Überwachungsaudit","Wiederholungsaudit"]
[0,1.2,1,1]
[11,1.3,1,1]
[16,1.6,1,1]
[26,2.1,1,1.4]
[46,2.7,1,1.8]
[66,3.2,1.1000000000000001,2.1]
[86,3.7,1.2,2.5]
[126,4.3,1.4,2.9]
[176,4.8,1.6,3.2]
[276,5.3,1.8,3.5]
[426,5.9,2,3.9]
[626,6.4,2.1,4.3]
[876,6.9,2.2999999999999998,4.5999999999999996]
[1176,7.5,2.5,5]
[1551,8,2.7,5.3]
[2026,8.5,2.8,5.7]
[2676,9.3000000000000007,3.1,6.2]
[3451,9.6,3.2,6.4]
[4351,10.1,3.4,6.7]
[5451,10.6,3.5,7.1]
[6801,11.2,3.7,7.5]
[8501,11.7,3.9,7.8]
[10700,"dem obigen Verlauf folgend"]

{"sheet":"Startseite","index":1,"n_rows":49,"n_cols":3,"rows_kept":49,"cut":false,"hidden":true,"merged":[[0,2,1,6],[41,1,42,6],[14,2,26,6]]}
[null,null,"Berechnungstool zum Auditaufwand nach dem \nZNU-Standard \"Nachhaltiger Wirtschaften\""]
[]
[]
[]
[]
[]
[]
[]
[]
[]
[]
[]
[]
[]
[null,null,"Dieses Tool dient zur Einschätzung von Auditaufwänden für Audits nach dem ZNU-Standard \"Nachhaltiger Wirtschaften\" bei Einzelstandorten. Bitte beachten Sie, dass dies keine exakte Berechnung darstellt, da dieses Tool aus Gründen der Übersichtlichkeit und Benutzerfreundlichkeit nicht alle Sonderfälle erfasst. Insbesondere die Multi-Site Regelungen werden nicht abgebildet. Um eine exakte Berechnung zu erhalten, wenden Sie sich bitte an eine der vom ZNU zugelassenen Zertifizierungsstellen.\n\nSollten Sie für einen einzelnen Standort den Aufwand berechnen wollen, so nutzen Sie bitte ausschließlich den Reiter \"Standort 1\". Möchten Sie den Auditaufwand für mehrere Standorte erfahren, so können Sie auf der Seite \"Standort 1\" weitere Standorte erstellen. \n\nDie Berechnung erfolgt auf Basis der Anzahl Ihrer festangestellten Mitarbeiter und wird je nach Beschäftigung von Leih- und Werkarbeitern und der Art der Tätigkeit angepasst. \n\nFür bereits bestehende Zertifizierungen werden Reduzierungen der Auditzeit i.H.v. 5% bzw. 10% gewährt.  \n\nDas Ergebnis der Einzelstandorte wird Ihnen auf der jeweiligen Seite angezeigt. Eine Übersicht über alle Standorte können Sie auf der Seite \"Standortübersicht\" einsehen. Sollten Sie einen Export der Ergebnisse in ein PDF-Format wünschen, so können Sie dies über die Schaltfläche \"Alle Standorte in PDF exportieren\" auf den Standortseiten erzeugen.\n\nEine detaillierte Beschreibung dieses Tools finden Sie im  \"Begleitdokument zum Tool \"ZNU - Auditaufwand\". Sollten Sie darüber hinaus noch weitere Fragen oder Anregungen haben, so kontaktieren Sie uns gerne! \n\nKontakt / Autor: Jona Nelson\nznu@uni-wh.de  Tel.: (0049)2302 926 545"]
[]
[]
[]
[]
[]
[]
[]
[]
[]
[]
[]
[]
[]
[]
[]
[]
[]
[]
[]
[]
[]
[]
[]
[]
[null,"Copyright"]
[]
[null,"Das Werk einschließlich aller seiner Teile ist urheberrechtlich geschützt. Jede Verwertung ist ohne Zustimmung des ZNU-Zentrum für Nachhaltige Unternehmensführungs der Universität Witten / Herdecke unzulässig. Insbesondere gilt dies für Vervielfältigungen, Übersetzungen und Mikroverfilmungen."]
[]
[]
[null,"Ó","ZNU - Zentrum für Nachhaltige Unternehmensführung"]
[null,"Private Universität Witten/Herdecke gGmbH"]
[null,"Alfred-Herrhausen-Straße 50"]
[null,"58448 Witten"]
[null,"Jona Nelson"]

{"sheet":"Site 1","index":2,"n_rows":22,"n_cols":11,"rows_kept":22,"cut":false,"hidden":false,"merged":[[9,0,9,1],[9,2,9,3],[4,0,4,3],[0,0,0,3],[8,0,8,3],[1,0,1,1],[1,2,1,3],[7,1,7,3],[3,2,3,3],[3,0,3,1],[2,0,2,3]]}
["Calculation of on-site audit time"]
["Name of the site"]
["Number of employees"]
["Number of employees",null,0,null,null,null,null,null,null,"zusätzliche Reduzierung",-0.1]
["Type of business",null,null,null,null,null,null,"Zertifizierungsaudit","Überwachungsauti","Wiederholungsaudit"]
["Type of business","Service","Manufacturing trade","Processing of hazardous material",null,null,null,{"$f":"IF(C4>0,VLOOKUP(C4,Hintergrund!A4:B25,2,1),0)","v":0},{"$f":"IF(C4>0,VLOOKUP(C4,Hintergrund!A4:C25,3,1),0)","v":0},{"$f":"IF(C4>0,VLOOKUP(C4,Hintergrund!A4:D25,4,1),0)","v":0}]
[null,0,0,0]
["Regarding the selections in the lines 12 and 16-19.","Select the type by double-clicking. If this does not work, you may either enter \"1\" [yes] or \"0\" [no]."]
["Already existing certifications"]
["10% reduction",null,"5% reduction",null,null,null,null,"Dienstleistung","produzierendes Gewerbe","Verarbeitung von Gefahrstoffen"]
["ISO 14001 / EMAS",0,"DNK or GRI-Report",0,null,null,null,{"$f":"IF(B7=1,-0.15,\"\")","v":""},{"$f":"IF(C7=1,-0.05,\"\")","v":""},{"$f":"IF(D7=1,0,\"\")","v":""},{"$f":"MAX(H11,I11,J11)","v":0}]
["ISO 50001",0,"ISO 9001",0]
["SA 8000",0,"ISO 45001",0]
["GRI-Report and critical review",0,"Overall reduction",{"$f":"MIN(K18*(-1),0.3)","v":0}]
[null,null,null,null,null,null,null,"ISO 14001 / EMAS",{"$f":"B11*0.1","v":0},"DNK oder GRI-Bericht",{"$f":"D11*0.05","v":0}]
[null,"Certification audit","Monitoring audit","Re-certification audit",null,null,null,"ISO 50001",{"$f":"B12*0.1","v":0},"ISO 9001",{"$f":"D12*0.05","v":0}]
["Overview on-site audit time",{"$f":"MAX(ROUND(H21*4-0.000001,0)/4,1)","v":1},{"$f":"MAX(ROUND(I21*4-0.000001,0)/4,1)","v":1},{"$f":"MAX(ROUND(J21*4-0.000001,0)/4,1)","v":1},null,null,null,"SA 8000",{"$f":"B13*0.1","v":0},"OHSAS",{"$f":"D13*0.05","v":0}]
["Ó ZNU 2018",null,null,null,null,null,null,"Testierter GRI-Bericht",{"$f":"B14*0.1","v":0},"Summe weitere Zertifizierungen",{"$f":"(MIN(SUM(I15:I18,K15:K17),0.3))*(-1)","v":0}]
[]
[null,null,null,null,null,null,null,"Summe Reduzierungen / Erhöhungen",{"$f":"K11+K18+K4","v":-0.1}]
[null,null,null,null,null,null,null,{"$f":"H6+H6*I20","v":0},{"$f":"I6+I6*I20","v":0},{"$f":"J6+J6*I20","v":0}]
[null,null,null,null,null,null,null,"Zertifizierungsaudit","Überwachungsauti","Wiederholungsaudit"]

{"sheet":"Instructions","index":3,"n_rows":4,"n_cols":2,"rows_kept":4,"cut":false,"hidden":false,"merged":[[0,0,0,1]]}
["Calculating audit time in three steps"]
["1.","Enter the number of your employees in \"line 4\"."]
["2.","Choose the type of your business in \"line 7\" (Select the type by double-clicking. If this does not work, you may either enter \"1\" [yes] or \"0\" [no].)."]
["3.","Indicate already existing certifications in \"line 11\" to \"line 14\" (Other recognized certifications shorten the audit time on site.)."]